[Event "Titled Tuesday Blitz May 17 Late 2022"]
[White "Tisaj, Domen"]
[Black "Martinez Alcantara, Jose Eduardo"]
[WhiteFideId "14628708"]
[BlackFideId "3805662"]
[WhiteElo "2326"]
[BlackElo "2690"]
[Result "0-1"]
[Round "01"]
[TimeControl "180+1"]
[Date "2022.05.17"]
[WhiteClock "0:00:59"]
[BlackClock "0:01:38"]

1. d4 {[%clk 0:03:00]}  Nf6 {[%clk 0:02:59]} 2. c4 {[%clk 0:03:01]}  e6 {[%clk 0:02:59]} 3. Nc3 {[%clk 0:03:01]}  Bb4 {[%clk 0:03:00]} 4. e3 {[%clk 0:03:02]}  O-O {[%clk 0:03:00]} 5. Ne2 {[%clk 0:03:02]}  Re8 {[%clk 0:02:59]} 6. a3 {[%clk 0:03:03]}  Bf8 {[%clk 0:03:00]} 7. d5 {[%clk 0:03:04]}  d6 {[%clk 0:02:59]} 8. g3 {[%clk 0:03:04]}  c5 {[%clk 0:02:53]} 9. Bg2 {[%clk 0:03:03]}  exd5 {[%clk 0:02:54]} 10. cxd5 {[%clk 0:03:04]}  g6 {[%clk 0:02:54]} 11. O-O {[%clk 0:03:04]}  Bg7 {[%clk 0:02:54]} 12. e4 {[%clk 0:03:05]}  a6 {[%clk 0:02:53]} 13. a4 {[%clk 0:03:05]}  Nbd7 {[%clk 0:02:53]} 14. h3 {[%clk 0:03:05]}  Rb8 {[%clk 0:02:50]} 15. a5 {[%clk 0:02:54]}  b5 {[%clk 0:02:50]} 16. axb6 {[%clk 0:02:55]}  Nxb6 {[%clk 0:02:51]} 17. Qc2 {[%clk 0:02:41]}  Nfd7 {[%clk 0:02:46]} 18. f4 {[%clk 0:02:29]}  c4 {[%clk 0:02:46]} 19. Be3 {[%clk 0:02:27]}  Qc7 {[%clk 0:02:41]} 20. Kh2 {[%clk 0:02:25]}  Nc5 {[%clk 0:02:41]} 21. Rad1 {[%clk 0:02:21]}  Nd3 {[%clk 0:02:32]} 22. Bd4 {[%clk 0:02:18]}  Bxd4 {[%clk 0:02:28]} 23. Nxd4 {[%clk 0:02:18]}  Bd7 {[%clk 0:02:28]} 24. Nce2 {[%clk 0:02:09]}  Nc5 {[%clk 0:02:20]} 25. f5 {[%clk 0:01:40]}  Ba4 {[%clk 0:02:17]} 26. Qc1 {[%clk 0:01:37]}  Bxd1 {[%clk 0:02:13]} 27. Rxd1 {[%clk 0:01:37]}  Nxe4 {[%clk 0:02:09]} 28. Bxe4 {[%clk 0:01:34]}  Rxe4 {[%clk 0:02:10]} 29. f6 {[%clk 0:01:35]}  Nxd5 {[%clk 0:02:07]} 30. Rf1 {[%clk 0:01:30]}  Rbe8 {[%clk 0:01:47]} 31. Rf2 {[%clk 0:01:13]}  Nxf6 {[%clk 0:01:44]} 32. Qh6 {[%clk 0:00:59]}  Qc5 {[%clk 0:01:38]} 0-1


[Site "https://www.chess.com"]

[Event "Titled Tuesday Blitz May 17 Late 2022"]
[White "Yurovskykh, Oleksandr"]
[Black "Svane, Rasmus"]
[WhiteFideId "14134020"]
[BlackFideId "4657101"]
[WhiteElo "2292"]
[BlackElo "2674"]
[Result "0-1"]
[Round "01"]
[TimeControl "180+1"]
[Date "2022.05.17"]
[WhiteClock "0:00:02"]
[BlackClock "0:00:08"]

1. d4 {[%clk 0:02:53]}  Nf6 {[%clk 0:02:59]} 2. Nf3 {[%clk 0:02:53]}  d5 {[%clk 0:02:59]} 3. c3 {[%clk 0:02:52]}  e6 {[%clk 0:02:53]} 4. Bf4 {[%clk 0:02:51]}  Bd6 {[%clk 0:02:53]} 5. Bg3 {[%clk 0:02:51]}  O-O {[%clk 0:02:53]} 6. Nbd2 {[%clk 0:02:44]}  c5 {[%clk 0:02:53]} 7. e3 {[%clk 0:02:44]}  Qc7 {[%clk 0:02:53]} 8. dxc5 {[%clk 0:02:44]}  Qxc5 {[%clk 0:02:53]} 9. Bd3 {[%clk 0:02:44]}  Nbd7 {[%clk 0:02:48]} 10. Qe2 {[%clk 0:02:41]}  Rd8 {[%clk 0:02:41]} 11. e4 {[%clk 0:02:34]}  dxe4 {[%clk 0:02:40]} 12. Bxe4 {[%clk 0:02:33]}  Qc7 {[%clk 0:02:29]} 13. Bxd6 {[%clk 0:02:11]}  Qxd6 {[%clk 0:02:30]} 14. O-O {[%clk 0:02:10]}  Nc5 {[%clk 0:02:30]} 15. Bc2 {[%clk 0:02:09]}  b6 {[%clk 0:02:29]} 16. Nc4 {[%clk 0:01:42]}  Ba6 {[%clk 0:02:23]} 17. b3 {[%clk 0:01:09]}  Qf4 {[%clk 0:02:18]} 18. Rfd1 {[%clk 0:01:04]}  Nd5 {[%clk 0:02:12]} 19. Qe5 {[%clk 0:00:46]}  Bxc4 {[%clk 0:02:00]} 20. bxc4 {[%clk 0:00:37]}  Qxe5 {[%clk 0:01:56]} 21. Nxe5 {[%clk 0:00:38]}  Nxc3 {[%clk 0:01:57]} 22. Re1 {[%clk 0:00:32]}  Rd2 {[%clk 0:01:52]} 23. Rac1 {[%clk 0:00:31]}  Ne2+ {[%clk 0:01:46]} 24. Rxe2 {[%clk 0:00:30]}  Rxe2 {[%clk 0:01:47]} 25. Nf3 {[%clk 0:00:30]}  Ne4 {[%clk 0:01:03]} 26. Bd3 {[%clk 0:00:24]}  Rxa2 {[%clk 0:00:46]} 27. Bxe4 {[%clk 0:00:24]}  Rc8 {[%clk 0:00:46]} 28. Bd3 {[%clk 0:00:23]}  g6 {[%clk 0:00:42]} 29. g3 {[%clk 0:00:23]}  Rc5 {[%clk 0:00:37]} 30. Rb1 {[%clk 0:00:20]}  Kg7 {[%clk 0:00:34]} 31. h4 {[%clk 0:00:20]}  f5 {[%clk 0:00:34]} 32. Ng5 {[%clk 0:00:20]}  Rc6 {[%clk 0:00:31]} 33. Re1 {[%clk 0:00:20]}  Kf6 {[%clk 0:00:21]} 34. Nxh7+ {[%clk 0:00:20]}  Ke7 {[%clk 0:00:22]} 35. Ng5 {[%clk 0:00:19]}  Rd2 {[%clk 0:00:19]} 36. Bf1 {[%clk 0:00:15]}  a5 {[%clk 0:00:20]} 37. Nf3 {[%clk 0:00:16]}  Rdd6 {[%clk 0:00:13]} 38. Ne5 {[%clk 0:00:16]}  Rc5 {[%clk 0:00:14]} 39. Nxg6+ {[%clk 0:00:17]}  Kf6 {[%clk 0:00:14]} 40. Nf4 {[%clk 0:00:15]}  a4 {[%clk 0:00:15]} 41. Ra1 {[%clk 0:00:15]}  Ra5 {[%clk 0:00:15]} 42. Ra3 {[%clk 0:00:14]}  Rd1 {[%clk 0:00:12]} 43. Nd3 {[%clk 0:00:13]}  Rb1 {[%clk 0:00:12]} 44. Kg2 {[%clk 0:00:13]}  Rb3 {[%clk 0:00:12]} 45. Ra2 {[%clk 0:00:13]}  a3 {[%clk 0:00:12]} 46. Be2 {[%clk 0:00:08]}  e5 {[%clk 0:00:13]} 47. h5 {[%clk 0:00:07]}  e4 {[%clk 0:00:13]} 48. Nf4 {[%clk 0:00:07]}  Rb2 {[%clk 0:00:13]} 49. Ra1 {[%clk 0:00:05]}  a2 {[%clk 0:00:14]} 50. Nd5+ {[%clk 0:00:02]}  Ke5 {[%clk 0:00:09]} 51. Bd1 {[%clk 0:00:01]}  Rb1 {[%clk 0:00:09]} 52. Rxa2 {[%clk 0:00:02]}  Rxa2 {[%clk 0:00:09]} 53. Nc3 {[%clk 0:00:03]}  Raa1 {[%clk 0:00:05]} 54. Nxb1 {[%clk 0:00:03]}  Rxb1 {[%clk 0:00:06]} 55. Be2 {[%clk 0:00:03]}  Rb2 {[%clk 0:00:07]} 56. h6 {[%clk 0:00:02]}  Kf6 {[%clk 0:00:07]} 57. h7 {[%clk 0:00:02]}  Kg7 {[%clk 0:00:07]} 58. Bh5 {[%clk 0:00:03]}  Kxh7 {[%clk 0:00:07]} 59. Bf7 {[%clk 0:00:02]}  Kg7 {[%clk 0:00:07]} 60. Bd5 {[%clk 0:00:03]}  Kf6 {[%clk 0:00:08]} 61. Kf1 {[%clk 0:00:03]}  Ke5 {[%clk 0:00:08]} 62. Bg8 {[%clk 0:00:03]}  f4 {[%clk 0:00:08]} 63. gxf4+ {[%clk 0:00:03]}  Kxf4 {[%clk 0:00:09]} 64. Bf7 {[%clk 0:00:04]}  Rc2 {[%clk 0:00:09]} 65. Ke1 {[%clk 0:00:04]}  e3 {[%clk 0:00:07]} 66. fxe3+ {[%clk 0:00:04]}  Kxe3 {[%clk 0:00:08]} 67. Kf1 {[%clk 0:00:05]}  Kd4 {[%clk 0:00:08]} 68. Ke1 {[%clk 0:00:03]}  Rxc4 {[%clk 0:00:07]} 69. Kd2 {[%clk 0:00:02]}  Rc7 {[%clk 0:00:07]} 70. Be6 {[%clk 0:00:02]}  b5 {[%clk 0:00:08]} 71. Bf5 {[%clk 0:00:01]}  b4 {[%clk 0:00:08]} 72. Be6 {[%clk 0:00:02]}  Rc3 {[%clk 0:00:08]} 0-1


[Site "https://www.chess.com"]

[Event "Titled Tuesday Blitz May 17 Late 2022"]
[White "Aggelis, Nikolaos"]
[Black "Donchenko, Alexander"]
[WhiteFideId "4213220"]
[BlackFideId "24603295"]
[WhiteElo "2154"]
[BlackElo "2572"]
[Result "0-1"]
[Round "02"]
[TimeControl "180+1"]
[Date "2022.05.17"]
[WhiteClock "0:00:10"]
[BlackClock "0:01:56"]

1. d4 {[%clk 0:03:00]}  Nf6 {[%clk 0:02:59]} 2. Nf3 {[%clk 0:02:59]}  d5 {[%clk 0:02:59]} 3. c4 {[%clk 0:02:58]}  e6 {[%clk 0:03:00]} 4. g3 {[%clk 0:02:58]}  Bb4+ {[%clk 0:03:00]} 5. Nbd2 {[%clk 0:02:57]}  dxc4 {[%clk 0:02:59]} 6. Bg2 {[%clk 0:02:57]}  b5 {[%clk 0:02:59]} 7. O-O {[%clk 0:02:56]}  Bb7 {[%clk 0:02:59]} 8. a4 {[%clk 0:02:53]}  c6 {[%clk 0:02:59]} 9. Ne5 {[%clk 0:02:50]}  a6 {[%clk 0:02:58]} 10. e3 {[%clk 0:02:47]}  Nfd7 {[%clk 0:02:54]} 11. Ndf3 {[%clk 0:02:43]}  O-O {[%clk 0:02:51]} 12. b3 {[%clk 0:02:39]}  cxb3 {[%clk 0:02:41]} 13. Qxb3 {[%clk 0:02:38]}  c5 {[%clk 0:02:41]} 14. axb5 {[%clk 0:02:24]}  axb5 {[%clk 0:02:41]} 15. Rxa8 {[%clk 0:02:25]}  Bxa8 {[%clk 0:02:42]} 16. dxc5 {[%clk 0:02:23]}  Nxe5 {[%clk 0:02:40]} 17. Nxe5 {[%clk 0:02:16]}  Bxg2 {[%clk 0:02:41]} 18. Kxg2 {[%clk 0:02:16]}  Bxc5 {[%clk 0:02:33]} 19. Qxb5 {[%clk 0:02:07]}  Qd5+ {[%clk 0:02:33]} 20. Nf3 {[%clk 0:02:07]}  Rd8 {[%clk 0:02:17]} 21. e4 {[%clk 0:01:50]}  Qc6 {[%clk 0:02:14]} 22. Qxc6 {[%clk 0:01:47]}  Nxc6 {[%clk 0:02:15]} 23. Bg5 {[%clk 0:01:43]}  Rc8 {[%clk 0:02:13]} 24. Rc1 {[%clk 0:01:40]}  Bb6 {[%clk 0:02:05]} 25. Ne5 {[%clk 0:01:28]}  Na7 {[%clk 0:02:05]} 26. Rxc8+ {[%clk 0:01:25]}  Nxc8 {[%clk 0:02:06]} 27. Nc4 {[%clk 0:01:22]}  Bc7 {[%clk 0:02:05]} 28. Be3 {[%clk 0:01:11]}  h5 {[%clk 0:02:05]} 29. f3 {[%clk 0:01:05]}  Ne7 {[%clk 0:02:05]} 30. h3 {[%clk 0:01:02]}  Ng6 {[%clk 0:02:03]} 31. Bb6 {[%clk 0:00:55]}  Bb8 {[%clk 0:02:02]} 32. Bd4 {[%clk 0:00:54]}  f6 {[%clk 0:02:01]} 33. Be3 {[%clk 0:00:36]}  Kf7 {[%clk 0:02:00]} 34. g4 {[%clk 0:00:33]}  h4 {[%clk 0:01:59]} 35. Bf2 {[%clk 0:00:32]}  Nf4+ {[%clk 0:01:58]} 36. Kh2 {[%clk 0:00:26]}  Ne2+ {[%clk 0:01:58]} 37. Kg2 {[%clk 0:00:24]}  g5 {[%clk 0:01:57]} 38. Bc5 {[%clk 0:00:15]}  Nf4+ {[%clk 0:01:57]} 39. Kf2 {[%clk 0:00:10]}  Nd3+ {[%clk 0:01:56]} 0-1


[Site "https://www.chess.com"]

[Event "Titled Tuesday Blitz May 17 Late 2022"]
[White "Babazada, Khazar"]
[Black "Sargsyan, Anna M."]
[WhiteFideId "13413554"]
[BlackFideId "13308130"]
[WhiteElo "2406"]
[BlackElo "2271"]
[Result "1-0"]
[Round "02"]
[TimeControl "180+1"]
[Date "2022.05.17"]
[WhiteClock "0:00:07"]
[BlackClock "0:00:04"]

1. e4 {[%clk 0:03:00]}  e5 {[%clk 0:02:59]} 2. Nf3 {[%clk 0:03:00]}  Nc6 {[%clk 0:03:00]} 3. Bb5 {[%clk 0:02:59]}  a6 {[%clk 0:03:00]} 4. Ba4 {[%clk 0:02:58]}  Nf6 {[%clk 0:03:01]} 5. O-O {[%clk 0:02:57]}  Nxe4 {[%clk 0:03:00]} 6. d4 {[%clk 0:02:56]}  b5 {[%clk 0:03:00]} 7. Bb3 {[%clk 0:02:54]}  d5 {[%clk 0:03:00]} 8. dxe5 {[%clk 0:02:49]}  Be6 {[%clk 0:03:00]} 9. c3 {[%clk 0:02:49]}  Be7 {[%clk 0:03:00]} 10. Nbd2 {[%clk 0:02:47]}  O-O {[%clk 0:03:00]} 11. Bc2 {[%clk 0:02:46]}  f5 {[%clk 0:02:59]} 12. exf6 {[%clk 0:02:37]}  Nxf6 {[%clk 0:02:59]} 13. Re1 {[%clk 0:02:31]}  Bg4 {[%clk 0:02:58]} 14. h3 {[%clk 0:01:54]}  Bh5 {[%clk 0:02:57]} 15. Bf5 {[%clk 0:01:54]}  Bc5 {[%clk 0:02:42]} 16. Nb3 {[%clk 0:01:35]}  Bb6 {[%clk 0:02:25]} 17. Be3 {[%clk 0:01:30]}  Ne5 {[%clk 0:01:23]} 18. Nbd2 {[%clk 0:00:50]}  Ne4 {[%clk 0:01:03]} 19. Be6+ {[%clk 0:00:40]}  Kh8 {[%clk 0:01:01]} 20. Nxe4 {[%clk 0:00:41]}  Nxf3+ {[%clk 0:00:17]} 21. gxf3 {[%clk 0:00:40]}  c6 {[%clk 0:00:06]} 22. Bxb6 {[%clk 0:00:23]}  Qxb6 {[%clk 0:00:07]} 23. Ng3 {[%clk 0:00:23]}  Bxf3 {[%clk 0:00:06]} 24. Qd4 {[%clk 0:00:24]}  c5 {[%clk 0:00:06]} 25. Qh4 {[%clk 0:00:17]}  Rae8 {[%clk 0:00:03]} 26. Bg4 {[%clk 0:00:17]}  Be4 {[%clk 0:00:01]} 27. Nxe4 {[%clk 0:00:15]}  dxe4 {[%clk 0:00:02]} 28. Re3 {[%clk 0:00:16]}  b4 {[%clk 0:00:02]} 29. Rae1 {[%clk 0:00:16]}  bxc3 {[%clk 0:00:02]} 30. bxc3 {[%clk 0:00:17]}  Qb2 {[%clk 0:00:02]} 31. Qg3 {[%clk 0:00:14]}  Qc2 {[%clk 0:00:02]} 32. R1e2 {[%clk 0:00:11]}  Qd1+ {[%clk 0:00:02]} 33. Kg2 {[%clk 0:00:12]}  Qd5 {[%clk 0:00:03]} 34. Re1 {[%clk 0:00:10]}  h6 {[%clk 0:00:03]} 35. Rd1 {[%clk 0:00:10]}  Qxa2 {[%clk 0:00:03]} 36. Rd7 {[%clk 0:00:10]}  Rf7 {[%clk 0:00:03]} 37. Rxf7 {[%clk 0:00:05]}  Qxf7 {[%clk 0:00:04]} 38. Qd6 {[%clk 0:00:05]}  Rf8 {[%clk 0:00:04]} 39. Re2 {[%clk 0:00:06]}  Qf6 {[%clk 0:00:02]} 40. Qxf6 {[%clk 0:00:06]}  Rxf6 {[%clk 0:00:03]} 41. Rxe4 {[%clk 0:00:06]}  a5 {[%clk 0:00:04]} 42. Rc4 {[%clk 0:00:07]}  Ra6 {[%clk 0:00:04]} 43. Ra4 {[%clk 0:00:07]}  c4 {[%clk 0:00:04]} 44. Be2 {[%clk 0:00:07]} 1-0


[Site "https://www.chess.com"]

[Event "Titled Tuesday Blitz May 17 Late 2022"]
[White "Bok, Benjamin"]
[Black "Wieczorek, Oskar"]
[WhiteFideId "1017063"]
[BlackFideId "1133950"]
[WhiteElo "2658"]
[BlackElo "2330"]
[Result "1-0"]
[Round "02"]
[TimeControl "180+1"]
[Date "2022.05.17"]
[WhiteClock "0:01:55"]
[BlackClock "0:01:39"]

1. d4 {[%clk 0:03:00]}  Nf6 {[%clk 0:02:59]} 2. c4 {[%clk 0:03:00]}  c5 {[%clk 0:02:59]} 3. Nf3 {[%clk 0:02:59]}  cxd4 {[%clk 0:02:58]} 4. Nxd4 {[%clk 0:03:00]}  Nc6 {[%clk 0:02:59]} 5. Nc3 {[%clk 0:03:00]}  g6 {[%clk 0:02:55]} 6. g3 {[%clk 0:03:00]}  d6 {[%clk 0:02:56]} 7. Bg2 {[%clk 0:03:00]}  Bd7 {[%clk 0:02:56]} 8. O-O {[%clk 0:02:56]}  h5 {[%clk 0:02:57]} 9. c5 {[%clk 0:02:42]}  dxc5 {[%clk 0:02:51]} 10. Nxc6 {[%clk 0:02:41]}  bxc6 {[%clk 0:02:43]} 11. Qa4 {[%clk 0:02:32]}  Qc8 {[%clk 0:02:41]} 12. Rd1 {[%clk 0:02:30]}  Nd5 {[%clk 0:02:21]} 13. Ne4 {[%clk 0:02:12]}  e6 {[%clk 0:01:49]} 14. Bf4 {[%clk 0:01:55]}  Nxf4 {[%clk 0:01:39]} 1-0


[Site "https://www.chess.com"]

[Event "Titled Tuesday Blitz May 17 Late 2022"]
[White "Dubov, Daniil"]
[Black "Motylev, Alexander"]
[WhiteFideId "24126055"]
[BlackFideId "4121830"]
[WhiteElo "2791"]
[BlackElo "2470"]
[Result "1-0"]
[Round "02"]
[TimeControl "180+1"]
[Date "2022.05.17"]
[WhiteClock "0:00:31"]
[BlackClock "0:00:10"]

1. d4 {[%clk 0:03:00]}  d5 {[%clk 0:02:59]} 2. Nf3 {[%clk 0:03:01]}  Nf6 {[%clk 0:02:58]} 3. c4 {[%clk 0:03:02]}  c6 {[%clk 0:02:57]} 4. Nc3 {[%clk 0:03:02]}  e6 {[%clk 0:02:57]} 5. g3 {[%clk 0:03:01]}  Nbd7 {[%clk 0:02:43]} 6. Bg2 {[%clk 0:03:02]}  Bd6 {[%clk 0:02:42]} 7. O-O {[%clk 0:03:03]}  O-O {[%clk 0:02:42]} 8. Qc2 {[%clk 0:03:03]}  b6 {[%clk 0:02:39]} 9. e4 {[%clk 0:03:01]}  dxe4 {[%clk 0:02:36]} 10. Ng5 {[%clk 0:03:00]}  Bb7 {[%clk 0:02:33]} 11. Ncxe4 {[%clk 0:02:58]}  Be7 {[%clk 0:02:33]} 12. Rd1 {[%clk 0:02:55]}  h6 {[%clk 0:02:28]} 13. Nxf6+ {[%clk 0:02:55]}  Nxf6 {[%clk 0:02:28]} 14. Ne4 {[%clk 0:02:56]}  Qd7 {[%clk 0:02:17]} 15. Bf4 {[%clk 0:02:52]}  Rfd8 {[%clk 0:02:13]} 16. c5 {[%clk 0:02:51]}  Nxe4 {[%clk 0:01:54]} 17. Bxe4 {[%clk 0:02:52]}  Rac8 {[%clk 0:01:51]} 18. Rac1 {[%clk 0:02:50]}  Bf6 {[%clk 0:01:49]} 19. Bd6 {[%clk 0:02:41]}  Bg5 {[%clk 0:01:38]} 20. Rb1 {[%clk 0:02:35]}  Be7 {[%clk 0:01:37]} 21. Be5 {[%clk 0:02:32]}  Ba6 {[%clk 0:01:35]} 22. b4 {[%clk 0:02:31]}  Qe8 {[%clk 0:01:23]} 23. a4 {[%clk 0:02:29]}  Bb7 {[%clk 0:01:20]} 24. h4 {[%clk 0:02:25]}  Rd7 {[%clk 0:01:18]} 25. Rd2 {[%clk 0:02:18]}  Qd8 {[%clk 0:01:17]} 26. Rbd1 {[%clk 0:02:14]}  Bf6 {[%clk 0:01:16]} 27. Qc3 {[%clk 0:02:01]}  Ba6 {[%clk 0:01:15]} 28. Kg2 {[%clk 0:01:56]}  Kh8 {[%clk 0:00:51]} 29. h5 {[%clk 0:01:54]}  Kg8 {[%clk 0:00:50]} 30. Bb1 {[%clk 0:01:54]}  Kf8 {[%clk 0:00:36]} 31. Qc2 {[%clk 0:01:35]}  Rd5 {[%clk 0:00:31]} 32. Ba2 {[%clk 0:01:25]}  Rd7 {[%clk 0:00:31]} 33. Bf4 {[%clk 0:01:19]}  Bg5 {[%clk 0:00:27]} 34. Qe4 {[%clk 0:01:08]}  Bxf4 {[%clk 0:00:26]} 35. Qxf4 {[%clk 0:01:08]}  Qg5 {[%clk 0:00:26]} 36. Qxg5 {[%clk 0:01:02]}  hxg5 {[%clk 0:00:26]} 37. Bb1 {[%clk 0:01:03]}  Ke7 {[%clk 0:00:21]} 38. g4 {[%clk 0:01:00]}  Bc4 {[%clk 0:00:18]} 39. Kg3 {[%clk 0:00:59]}  Rcd8 {[%clk 0:00:18]} 40. f4 {[%clk 0:00:58]}  gxf4+ {[%clk 0:00:16]} 41. Kxf4 {[%clk 0:00:58]}  f6 {[%clk 0:00:17]} 42. Ke3 {[%clk 0:00:55]}  Rd5 {[%clk 0:00:15]} 43. Be4 {[%clk 0:00:52]}  Rg5 {[%clk 0:00:15]} 44. Bxc6 {[%clk 0:00:51]}  Rxg4 {[%clk 0:00:15]} 45. Rg2 {[%clk 0:00:51]}  Rxg2 {[%clk 0:00:13]} 46. Bxg2 {[%clk 0:00:52]}  Bd5 {[%clk 0:00:13]} 47. Rg1 {[%clk 0:00:47]}  Bb3 {[%clk 0:00:10]} 48. Bb7 {[%clk 0:00:31]}  Rd7 {[%clk 0:00:10]} 49. Rxg7+ {[%clk 0:00:30]}  Kd8 {[%clk 0:00:10]} 50. Rxd7+ {[%clk 0:00:31]}  Kxd7 {[%clk 0:00:10]} 51. h6 {[%clk 0:00:31]} 1-0


[Site "https://www.chess.com"]

[Event "Titled Tuesday Blitz May 17 Late 2022"]
[White "Ekdyshman, Mikhail"]
[Black "Chigaev, Maksim"]
[WhiteFideId "4149416"]
[BlackFideId "4108116"]
[WhiteElo "2146"]
[BlackElo "2457"]
[Result "0-1"]
[Round "02"]
[TimeControl "180+1"]
[Date "2022.05.17"]
[WhiteClock "0:00:56"]
[BlackClock "0:01:11"]

1. d4 {[%clk 0:03:00]}  Nf6 {[%clk 0:02:57]} 2. Nf3 {[%clk 0:03:00]}  d5 {[%clk 0:02:57]} 3. e3 {[%clk 0:02:59]}  g6 {[%clk 0:02:54]} 4. Bd3 {[%clk 0:02:59]}  Bg7 {[%clk 0:02:55]} 5. O-O {[%clk 0:02:59]}  O-O {[%clk 0:02:55]} 6. Nbd2 {[%clk 0:02:59]}  c5 {[%clk 0:02:55]} 7. c3 {[%clk 0:02:56]}  b6 {[%clk 0:02:55]} 8. h3 {[%clk 0:02:56]}  Bb7 {[%clk 0:02:55]} 9. a4 {[%clk 0:02:56]}  Nc6 {[%clk 0:02:55]} 10. Rb1 {[%clk 0:02:56]}  Qd6 {[%clk 0:02:48]} 11. Re1 {[%clk 0:02:50]}  e5 {[%clk 0:02:46]} 12. dxe5 {[%clk 0:02:35]}  Nxe5 {[%clk 0:02:47]} 13. Nxe5 {[%clk 0:02:36]}  Qxe5 {[%clk 0:02:48]} 14. Nf3 {[%clk 0:02:35]}  Qe7 {[%clk 0:02:49]} 15. b4 {[%clk 0:02:33]}  Ne4 {[%clk 0:02:35]} 16. Bxe4 {[%clk 0:02:22]}  dxe4 {[%clk 0:02:35]} 17. Nd2 {[%clk 0:02:22]}  Rfd8 {[%clk 0:02:31]} 18. Qc2 {[%clk 0:02:18]}  Rd3 {[%clk 0:02:29]} 19. Bb2 {[%clk 0:02:14]}  Rad8 {[%clk 0:02:28]} 20. Nc4 {[%clk 0:02:13]}  Qe6 {[%clk 0:02:25]} 21. Na3 {[%clk 0:02:06]}  h5 {[%clk 0:01:56]} 22. bxc5 {[%clk 0:02:00]}  bxc5 {[%clk 0:01:56]} 23. c4 {[%clk 0:01:52]}  Bxb2 {[%clk 0:01:51]} 24. Rxb2 {[%clk 0:01:46]}  Bc6 {[%clk 0:01:48]} 25. Nb5 {[%clk 0:01:45]}  R8d7 {[%clk 0:01:27]} 26. Ra2 {[%clk 0:01:20]}  Qe5 {[%clk 0:01:23]} 27. a5 {[%clk 0:01:06]}  a6 {[%clk 0:01:22]} 28. Na3 {[%clk 0:01:06]}  Qc3 {[%clk 0:01:13]} 29. Nb1 {[%clk 0:00:56]}  Qxe1+ {[%clk 0:01:11]} 0-1


[Site "https://www.chess.com"]

[Event "Titled Tuesday Blitz May 17 Late 2022"]
[White "Fedoseev, Vladimir"]
[Black "Dardha, Daniel"]
[WhiteFideId "24130737"]
[BlackFideId "240990"]
[WhiteElo "2726"]
[BlackElo "2482"]
[Result "1-0"]
[Round "02"]
[TimeControl "180+1"]
[Date "2022.05.17"]
[WhiteClock "0:00:05"]
[BlackClock "0:00:01"]

1. e4 {[%clk 0:02:59]}  c5 {[%clk 0:02:59]} 2. Nf3 {[%clk 0:02:59]}  Nc6 {[%clk 0:03:00]} 3. d4 {[%clk 0:02:59]}  cxd4 {[%clk 0:03:01]} 4. Nxd4 {[%clk 0:02:59]}  e5 {[%clk 0:03:00]} 5. Nb5 {[%clk 0:02:58]}  a6 {[%clk 0:03:00]} 6. Nd6+ {[%clk 0:02:57]}  Bxd6 {[%clk 0:03:01]} 7. Qxd6 {[%clk 0:02:58]}  Qe7 {[%clk 0:03:02]} 8. Qxe7+ {[%clk 0:02:55]}  Ngxe7 {[%clk 0:03:01]} 9. Nc3 {[%clk 0:02:51]}  d5 {[%clk 0:03:01]} 10. Bd2 {[%clk 0:02:37]}  Be6 {[%clk 0:02:43]} 11. exd5 {[%clk 0:02:22]}  Nxd5 {[%clk 0:02:44]} 12. Nxd5 {[%clk 0:02:00]}  Bxd5 {[%clk 0:02:45]} 13. c3 {[%clk 0:02:00]}  O-O-O {[%clk 0:02:44]} 14. Be3 {[%clk 0:01:58]}  Kc7 {[%clk 0:02:39]} 15. f3 {[%clk 0:01:56]}  f5 {[%clk 0:02:39]} 16. Be2 {[%clk 0:01:55]}  f4 {[%clk 0:02:39]} 17. Bf2 {[%clk 0:01:54]}  g5 {[%clk 0:02:39]} 18. b3 {[%clk 0:01:42]}  h5 {[%clk 0:02:27]} 19. O-O-O {[%clk 0:01:40]}  e4 {[%clk 0:02:02]} 20. c4 {[%clk 0:01:39]}  exf3 {[%clk 0:02:02]} 21. gxf3 {[%clk 0:01:30]}  Be6 {[%clk 0:02:03]} 22. Rxd8 {[%clk 0:01:07]}  Rxd8 {[%clk 0:02:04]} 23. Rg1 {[%clk 0:01:05]}  Rg8 {[%clk 0:01:57]} 24. Be1 {[%clk 0:01:04]}  Nd4 {[%clk 0:01:55]} 25. Bd1 {[%clk 0:01:03]}  g4 {[%clk 0:01:47]} 26. Bd2 {[%clk 0:01:03]}  Rf8 {[%clk 0:01:15]} 27. fxg4 {[%clk 0:00:45]}  hxg4 {[%clk 0:01:14]} 28. Bc3 {[%clk 0:00:45]}  Nf3 {[%clk 0:00:56]} 29. Rf1 {[%clk 0:00:20]}  Nxh2 {[%clk 0:00:30]} 30. Rxf4 {[%clk 0:00:19]}  Rxf4 {[%clk 0:00:30]} 31. Be5+ {[%clk 0:00:20]}  Kc6 {[%clk 0:00:30]} 32. Bxf4 {[%clk 0:00:21]}  Nf3 {[%clk 0:00:27]} 33. Kc2 {[%clk 0:00:21]}  Bf5+ {[%clk 0:00:24]} 34. Kc3 {[%clk 0:00:21]}  b5 {[%clk 0:00:24]} 35. Be2 {[%clk 0:00:18]}  Be4 {[%clk 0:00:16]} 36. cxb5+ {[%clk 0:00:17]}  axb5 {[%clk 0:00:17]} 37. Bg3 {[%clk 0:00:15]}  Bb1 {[%clk 0:00:13]} 38. a3 {[%clk 0:00:13]}  Be4 {[%clk 0:00:12]} 39. Bf2 {[%clk 0:00:13]}  Bd5 {[%clk 0:00:09]} 40. Kb4 {[%clk 0:00:13]}  Nd2 {[%clk 0:00:09]} 41. Bxb5+ {[%clk 0:00:13]}  Kb7 {[%clk 0:00:08]} 42. Be3 {[%clk 0:00:10]}  Nxb3 {[%clk 0:00:05]} 43. a4 {[%clk 0:00:09]}  g3 {[%clk 0:00:02]} 44. Bd3 {[%clk 0:00:09]}  g2 {[%clk 0:00:03]} 45. Bc2 {[%clk 0:00:09]}  Nc1 {[%clk 0:00:03]} 46. Bd1 {[%clk 0:00:07]}  Nd3+ {[%clk 0:00:03]} 47. Kc3 {[%clk 0:00:07]}  Nc5 {[%clk 0:00:02]} 48. Bxc5 {[%clk 0:00:06]}  Bc6 {[%clk 0:00:01]} 49. Bg1 {[%clk 0:00:05]} 1-0


[Site "https://www.chess.com"]